fUSD/lending_fUSD_20250905
["ID","MTS","AMOUNT","RATE_DAILY","PERIOD"]
[383731984,1757103055182,-151.0,0.00026,2]
[383731986,1757103055192,-151.0,0.00026,7]
[383731988,1757103055202,-151.0,0.00026,7]
[383731990,1757103055211,-151.0,0.00026,7]
[383731992,1757103055221,-151.0,0.00026,7]
[383731994,1757103055231,-228.029573,0.00026,7]
[383731996,1757103055242,-151.0,0.00026,7]
[383731998,1757103055252,-659.642656,0.00026,7]
[383732000,1757103055262,-151.0,0.00026,7]
[383732002,1757103055272,-659.642656,0.00026,7]
[383732004,1757103055282,-151.0,0.00026,7]
[383732006,1757103055291,-659.642656,0.00026,7]
[383732008,1757103055301,-659.642656,0.00026,7]
[383732011,1757103055311,-203.40053414,0.0002614,7]
[383732013,1757103055321,-151.0,0.00026143,7]
[383732015,1757103055331,-151.0,0.00026143,7]
[383732017,1757103055340,-151.0,0.00026143,7]
[383732019,1757103055351,-151.0,0.00026143,7]
[383732021,1757103055361,-151.0,0.00026143,7]
[383732023,1757103055371,-269.732943,0.00026143,7]
[383732025,1757103055382,-151.0,0.00026143,7]
[383732027,1757103055392,-151.0,0.00026143,7]
[383732029,1757103055402,-151.0,0.00026143,7]
[383732031,1757103055414,-151.0,0.00026143,7]
[383732033,1757103055424,-153.30054,0.00026143,7]
[383732035,1757103055434,-192.05837,0.00026143,7]
[383732037,1757103055444,-192.05837,0.00026143,7]
[383732060,1757103055673,-192.05837,0.00026143,7]
[383732061,1757103055683,-192.05837,0.00026143,7]
[383732062,1757103055692,-151.0,0.00026148,7]
[383732063,1757103055702,-151.0,0.00026148,7]
[383732064,1757103055712,-151.0,0.00026148,7]
[383732065,1757103055721,-151.0,0.00026148,7]
[383732066,1757103055731,-151.0,0.00026148,7]
[383732068,1757103055741,-151.0,0.00026148,7]
[383732070,1757103055751,-151.0,0.00026148,7]
[383732072,1757103055760,-213.849627,0.00026148,7]
[383732074,1757103055770,-151.0,0.00026148,7]
[383732076,1757103055780,-151.0,0.00026148,7]
[383732078,1757103055789,-151.0,0.00026148,7]
[383732080,1757103055798,-151.0,0.00026148,2]
[383732082,1757103055808,-151.0,0.00026148,7]
[383732084,1757103055817,-151.0,0.00026148,7]
[383732086,1757103055827,-151.0,0.00026148,7]
[383732088,1757103055836,-151.0,0.00026148,7]
[383732090,1757103055845,-151.0,0.00026148,7]
[383732092,1757103055854,-659.642656,0.00026148,7]
[383732094,1757103055863,-151.0,0.00026148,7]
[383732096,1757103055878,-659.642656,0.00026148,7]
[383732098,1757103055888,-221.289709,0.00026148,7]
[383732100,1757103055897,-659.642656,0.00026148,7]
[383732102,1757103055907,-659.642652,0.00026148,7]
[383732104,1757103055918,-1465.19347066,0.00026316,2]
[383732107,1757103055928,-2000.0,0.00026316,2]
[383732109,1757103055938,-2000.0,0.00026316,2]
[383732111,1757103055949,-163.23682652,0.00026374,2]
[383732113,1757103055959,-164.23,0.00026664,7]
[383732115,1757103055969,-4000.0,0.00026687,4]
[383732117,1757103055978,-2500.0,0.00026864,2]
[383732119,1757103055988,-2500.0,0.00026864,2]
[383732121,1757103055997,-996.46903327,0.00026959,6]
[383732123,1757103056007,-979.02,0.00027,7]
[383732125,1757103056016,-423.74908537,0.00027134,2]
[383732126,1757103056026,-516.0,0.00027137,2]
[383732129,1757103056035,-150.0,0.00027397,5]
[383732131,1757103056045,-466.58726742,0.00027412,5]
[383732133,1757103056055,-847.29210355,0.00027412,5]
[383732135,1757103056064,-353.67,0.00027425,30]
[383732137,1757103056075,-10786.2159728,0.00027439,2]
[383732139,1757103056085,-7951.83833312,0.00027439,2]
[383732141,1757103056095,-2970.9,0.000276,7]
[383732142,1757103056104,-637.0,0.00027631,2]
[383732144,1757103056113,-192.05837,0.00027682,7]
[383732147,1757103056123,-192.05837,0.00027682,7]
[383732149,1757103056134,-192.05837,0.00027682,7]
[383732151,1757103056143,-192.058371,0.00027682,7]
[383732153,1757103056153,-250.0,0.00027945,5]
[383732155,1757103056164,-996.46903327,0.00027988,8]
[383732156,1757103056174,-4000.0,0.00028166,4]
[383732159,1757103056184,-163.23682652,0.00028191,2]
[383732161,1757103056194,-164.23,0.0002845,30]
[383732163,1757103056203,-350.0,0.00028493,5]
[383732165,1757103056213,-200.0,0.00028772,2]
[383732167,1757103056222,-176.2812,0.0002879,7]
[383732169,1757103056232,-151.0,0.0002879,7]
[383732171,1757103056241,-176.2812,0.0002879,7]
[383732173,1757103056250,-151.0,0.0002879,7]
[383732175,1757103056260,-176.2812,0.0002879,7]
[383732177,1757103056268,-151.0,0.0002879,7]
[383732179,1757103056278,-176.2812,0.0002879,7]
[383732181,1757103056287,-151.0,0.0002879,7]
[383732183,1757103056297,-151.0,0.0002879,7]
[383732185,1757103056306,-151.0,0.0002879,7]
[383732187,1757103056315,-154.190908,0.0002879,7]
[383732189,1757103056325,-151.0,0.0002879,7]
[383732191,1757103056334,-291.202187,0.0002879,7]
[383732193,1757103056343,-249.15,0.000288,2]
[383732195,1757103056352,-153.655604,0.00028829,7]
[383732197,1757103056362,-996.46903327,0.00029017,11]
[383732199,1757103056371,-450.0,0.00029041,5]
[383732201,1757103056381,-10786.2159728,0.00029164,2]
[383732203,1757103056390,-7951.83833312,0.00029164,2]
[383732205,1757103056399,-769.012768,0.00029211,2]
[383732207,1757103056409,-979.02,0.000293,7]
[383732209,1757103056418,-427.35,0.00029311,2]
[383732211,1757103056427,-550.0,0.00029589,5]
[383732213,1757103056437,-4000.0,0.00029645,4]
[383732215,1757103056446,-423.74908537,0.00029671,2]
[383732217,1757103056455,-978.68,0.00029748,2]
[383732219,1757103056465,-2970.9,0.000299,7]
[383732221,1757103056474,-151.0,0.0003,7]
[383732223,1757103056483,-163.23682652,0.00030007,15]
[383732225,1757103056492,-996.46903327,0.00030046,13]
[383732227,1757103056502,-811.9421587,0.00030121,2]
[383732229,1757103056511,-650.0,0.00030137,5]
[383732231,1757103056521,-164.23,0.00030137,30]
[383732233,1757103056530,-1100.0,0.0003015,7]
[383732235,1757103056540,-151.0,0.00030172,7]
[383732237,1757103056550,-151.0,0.00030172,7]
[383732239,1757103056559,-151.0,0.00030172,7]
[383732241,1757103056569,-186.837569,0.00030172,7]
[383732243,1757103056579,-151.0,0.00030172,7]
[383732245,1757103056589,-151.0,0.00030172,7]
[383732247,1757103056599,-151.0,0.00030172,7]
[383732249,1757103056608,-151.0,0.00030172,7]
[383732251,1757103056618,-276.872531,0.00030172,7]
[383732253,1757103056627,-500.0,0.00030172,7]
[383732255,1757103056637,-3189.0,0.00030181,5]
[383732257,1757103056646,-900.0,0.00030227,7]
[383732259,1757103056655,-500.0,0.00030233,7]
[383732261,1757103056664,-900.0,0.00030234,7]
[383732263,1757103056674,-500.0,0.00030241,7]
[383732265,1757103056683,-811.9421588,0.00030242,2]
[383732267,1757103056693,-500.0,0.00030257,7]
[383732269,1757103056702,-160.0,0.00030303,2]
[383732271,1757103056711,-500.0,0.00030347,7]
[383732273,1757103056720,-500.0,0.00030368,7]
[383732275,1757103056729,-900.0,0.00030379,7]
[383732277,1757103056739,-500.0,0.00030382,7]
[383732279,1757103056748,-1100.0,0.00030402,7]
[383732281,1757103056758,-500.0,0.00030452,7]
[383732283,1757103056767,-900.0,0.00030453,7]
[383732285,1757103056776,-900.0,0.0003047,7]
[383732287,1757103056785,-151.0,0.00030481,2]
[383732289,1757103056795,-151.0,0.00030481,2]
[383732291,1757103056804,-1285.04821,0.00030481,2]
[383732293,1757103056813,-151.0,0.00030496,7]
[383732295,1757103056823,-151.0,0.00030496,7]
[383732297,1757103056834,-217.952587,0.00030496,7]
[383732299,1757103056843,-151.0,0.00030496,7]
[383732301,1757103056854,-151.0,0.00030496,7]
[383732303,1757103056865,-151.0,0.00030496,7]
[383732306,1757103056878,-151.99552,0.00030496,7]
[383732308,1757103056888,-151.0,0.00030496,7]
[383732309,1757103056898,-151.0,0.00030496,7]
[383732311,1757103056907,-151.0,0.00030496,7]
[383732314,1757103056919,-176.2812,0.00030496,7]
[383732315,1757103056929,-151.0,0.00030496,7]
[383732317,1757103056940,-176.2812,0.00030496,7]
[383732319,1757103056950,-151.0,0.00030496,7]
[383732321,1757103056960,-176.2812,0.00030496,7]
[383732323,1757103056969,-151.0,0.00030496,7]
[383732325,1757103056978,-176.2812,0.00030496,7]
[383732327,1757103056988,-151.0,0.00030496,7]
[383732329,1757103056998,-151.0,0.00030496,7]
[383732331,1757103057007,-151.0,0.00030496,7]
[383732333,1757103057016,-151.0,0.00030496,7]
[383732335,1757103057025,-900.0,0.00030496,7]
[383732337,1757103057035,-900.0,0.00030509,7]
[383732339,1757103057045,-1285.04821,0.0003053,2]
[383732342,1757103057055,-500.0,0.00030535,7]
[383732343,1757103057064,-900.0,0.00030542,7]
[383732346,1757103057073,-900.0,0.00030563,7]
[383732348,1757103057083,-700.0,0.00030575,7]
[383732349,1757103057092,-900.0,0.00030576,7]
[383732351,1757103057102,-500.0,0.0003063,7]
[383732354,1757103057112,-220.705,0.00030641,26]
[383732356,1757103057121,-1323.74,0.00030641,26]
[383732358,1757103057131,-900.0,0.00030643,7]
[383732360,1757103057142,-500.0,0.00030671,7]
[383732362,1757103057151,-769.01276794,0.00030673,2]
[383732364,1757103057161,-612.38338442,0.00030685,5]
[383732366,1757103057170,-180.18517051,0.00030692,7]
[383732368,1757103057180,-1594.0,0.000307,2]
[383732370,1757103057189,-500.0,0.00030716,7]
[383732372,1757103057199,-500.0,0.00030786,7]
[383732374,1757103057209,-500.0,0.00030795,7]
[383732376,1757103057219,-979.02,0.000308,30]
[383732378,1757103057228,-1100.0,0.00030808,7]
[383732380,1757103057237,-900.0,0.00030809,7]
[383732382,1757103057247,-500.0,0.00030813,7]
[383732384,1757103057258,-216.20443667,0.00030821,7]
[383732386,1757103057267,-900.0,0.00030835,7]
[383732388,1757103057277,-700.0,0.00030845,7]
[383732390,1757103057286,-10786.2159728,0.00030889,2]
[383732392,1757103057295,-7951.83833312,0.00030889,2]
[383732394,1757103057305,-900.0,0.0003093,7]
[383732396,1757103057315,-900.0,0.00030953,7]
[383732398,1757103057324,-500.0,0.00030995,7]
[383732400,1757103057334,-1285.04821,0.0003103,2]
[383732402,1757103057344,-500.0,0.00031043,7]
[383732404,1757103057353,-500.0,0.00031053,7]
[383732406,1757103057362,-6237.5383136,0.00031054,2]
[383732408,1757103057371,-1171.4591917,0.00031054,2]
[383732410,1757103057381,-200.0,0.00031061,2]
[383732412,1757103057391,-996.46903327,0.00031076,15]
[383732414,1757103057400,-2970.9,0.000311,7]
[383732416,1757103057410,-4000.0,0.00031125,4]
[383732418,1757103057419,-1100.0,0.00031142,7]
[383732420,1757103057429,-900.0,0.00031162,7]
[383732422,1757103057438,-700.0,0.00031173,7]
[383732424,1757103057447,-900.0,0.00031186,7]
[383732426,1757103057457,-900.0,0.00031203,7]
[383732428,1757103057467,-500.0,0.00031212,7]
[383732430,1757103057477,-900.0,0.0003123,7]
[383732432,1757103057486,-500.0,0.00031242,7]
[383732434,1757103057496,-500.0,0.00031277,7]
[383732436,1757103057505,-1100.0,0.00031309,7]
[383732438,1757103057514,-500.0,0.00031367,7]
[383732440,1757103057524,-900.0,0.00031386,7]
[383732442,1757103057533,-500.0,0.0003139,7]
[383732444,1757103057543,-500.0,0.00031395,7]
[383732446,1757103057553,-700.0,0.00031428,7]
[383732448,1757103057562,-900.0,0.0003144,7]
[383732450,1757103057572,-900.0,0.00031488,7]
[383732452,1757103057582,-1285.04821,0.0003153,2]
[383732454,1757103057591,-600.53406039,0.00031541,7]
[383732456,1757103057600,-1100.0,0.00031557,7]
[383732457,1757103057610,-900.0,0.00031567,7]
[383732458,1757103057620,-900.0,0.00031576,7]
[383732459,1757103057629,-500.0,0.00031602,7]
[383732460,1757103057639,-1100.0,0.00031606,7]
[383732461,1757103057648,-900.0,0.00031645,7]
[383732462,1757103057657,-321.8947398,0.00031661,2]
[383732463,1757103057667,-1100.0,0.00031679,7]
[383732464,1757103057676,-900.0,0.00031689,7]
[383732465,1757103057686,-900.0,0.00031697,7]
[383732467,1757103057696,-500.0,0.00031716,7]
[383732469,1757103057706,-900.0,0.00031756,7]
[383732471,1757103057715,-700.0,0.00031782,7]
[383732473,1757103057724,-367.0,0.000318,2]
[383732475,1757103057733,-163.23682652,0.00031824,15]
[383732477,1757103057743,-900.0,0.00031904,7]
[383732479,1757103057752,-500.0,0.00031907,7]
[383732481,1757103057762,-900.0,0.00031944,7]
[383732483,1757103057771,-1100.0,0.00031947,7]
[383732485,1757103057781,-900.0,0.00031992,7]
[383732487,1757103057790,-1100.0,0.00031997,7]
[383732489,1757103057799,-500.0,0.00032007,7]
[383732491,1757103057809,-164.23,0.00032021,30]
[383732493,1757103057819,-1285.04821,0.0003203,2]
[383732496,1757103057829,-900.0,0.00032062,7]
[383732498,1757103057838,-500.0,0.00032063,7]
[383732500,1757103057847,-500.0,0.00032096,7]
[383732502,1757103057858,-186.68,0.00032097,2]
[383732503,1757103057867,-996.46903327,0.00032105,17]
[383732505,1757103057880,-1100.0,0.00032123,7]
[383732507,1757103057890,-500.0,0.00032127,7]
[383732509,1757103057899,-506.42019514,0.0003213,7]
[383732511,1757103057909,-769.01276794,0.00032135,2]
[383732513,1757103057919,-700.0,0.00032135,7]
[383732515,1757103057928,-900.0,0.00032148,7]
[383732517,1757103057937,-151.0,0.00032152,7]
[383732519,1757103057946,-151.0,0.00032152,7]
[383732521,1757103057957,-151.0,0.00032152,7]
[383732523,1757103057967,-151.0,0.00032152,7]
[383732525,1757103057976,-151.0,0.00032152,7]
[383732527,1757103057986,-151.0,0.00032152,7]
[383732529,1757103057995,-151.0,0.00032152,7]
[383732532,1757103058006,-1100.0,0.00032157,7]
[383732534,1757103058016,-500.0,0.00032166,7]
[383732536,1757103058025,-900.0,0.00032182,7]
[383732538,1757103058036,-470.59,0.00032192,2]
[383732540,1757103058046,-801.77,0.00032192,2]
[383732542,1757103058056,-423.74908537,0.00032207,2]
[383732544,1757103058066,-900.0,0.00032213,7]
[383732546,1757103058075,-700.0,0.00032226,7]
[383732548,1757103058085,-1100.0,0.00032239,7]
[383732550,1757103058095,-900.0,0.00032246,7]
[383732552,1757103058105,-801.77,0.00032247,2]
[383732554,1757103058115,-900.0,0.00032263,7]
[383732556,1757103058124,-1100.0,0.00032272,7]
[383732558,1757103058134,-176.2812,0.00032284,7]
[383732560,1757103058143,-151.0,0.00032284,7]
[383732562,1757103058153,-176.2812,0.00032284,7]
[383732564,1757103058162,-151.0,0.00032284,7]
[383732566,1757103058172,-176.2812,0.00032284,7]
[383732568,1757103058181,-176.2812,0.00032284,7]
[383732570,1757103058190,-242.391,0.00032284,7]
[383732572,1757103058200,-151.0,0.00032284,7]
[383732574,1757103058209,-151.0,0.00032284,7]
[383732576,1757103058218,-151.0,0.00032284,7]
[383732578,1757103058227,-900.0,0.00032288,7]
[383732580,1757103058238,-900.0,0.00032302,7]
[383732582,1757103058247,-153.0,0.00032316,2]
[383732584,1757103058257,-153.0,0.00032316,2]
[383732586,1757103058266,-153.0,0.00032316,2]
[383732588,1757103058276,-153.0,0.00032316,2]
[383732590,1757103058285,-153.0,0.00032316,2]
[383732592,1757103058295,-153.0,0.00032316,2]
[383732594,1757103058305,-153.0,0.00032316,2]
[383732596,1757103058314,-153.0,0.00032316,2]
[383732598,1757103058323,-153.0,0.00032316,2]
[383732600,1757103058333,-500.0,0.00032354,7]
[383732602,1757103058342,-470.59,0.00032356,2]
[383732604,1757103058352,-801.77,0.00032356,2]
[383732606,1757103058361,-470.59,0.00032356,2]
[383732608,1757103058371,-469.51,0.00032356,2]
[383732610,1757103058380,-801.77,0.00032356,2]
[383732612,1757103058390,-500.0,0.00032435,7]
[383732614,1757103058399,-500.0,0.00032452,7]
[383732616,1757103058408,-1100.0,0.00032473,7]
[383732618,1757103058418,-2000.0,0.000325,2]
[383732620,1757103058427,-500.0,0.00032502,7]
[383732622,1757103058436,-500.0,0.00032527,7]
[383732624,1757103058445,-1285.04821,0.0003253,2]
[383732626,1757103058455,-4000.0,0.00032604,4]
[383732628,1757103058464,-10786.2159728,0.00032614,2]
[383732630,1757103058473,-7951.83833312,0.00032614,2]
[383732632,1757103058482,-900.0,0.00032631,7]
[383732634,1757103058491,-500.0,0.00032646,7]
[383732637,1757103058501,-4196.551,0.00032661,2]
[383732638,1757103058510,-6152.0,0.00032661,2]
[383732640,1757103058519,-21153.0,0.00032661,2]
[383732642,1757103058528,-179.38,0.00032661,2]
[383732644,1757103058537,-500.0,0.00032662,7]
[383732646,1757103058547,-900.0,0.00032665,7]
[383732648,1757103058556,-155.59,0.00032666,2]
[383732650,1757103058566,-1006.0,0.000327,7]
[383732653,1757103058577,-500.0,0.00032714,7]
[383732655,1757103058586,-900.0,0.0003273,7]
[383732657,1757103058595,-500.0,0.00032775,7]
[383732659,1757103058605,-900.0,0.00032783,7]
[383732661,1757103058614,-500.0,0.00032825,7]
[383732663,1757103058624,-500.0,0.00032825,5]
[383732664,1757103058632,-502.52357593,0.00032825,5]
[383732666,1757103058641,-500.0,0.00032834,7]
[383732668,1757103058650,-500.0,0.00032847,7]
[383732670,1757103058659,-151.0,0.00032857,7]
[383732672,1757103058668,-151.0,0.00032857,7]
[383732674,1757103058678,-151.0,0.00032857,7]
[383732676,1757103058687,-151.0,0.00032857,7]
[383732678,1757103058696,-151.0,0.00032857,7]
[383732680,1757103058705,-900.0,0.00032869,7]
[383732682,1757103058715,-500.0,0.00032877,7]
[383732684,1757103058725,-337.43214378,0.00032877,7]
[383732686,1757103058735,-500.0,0.00032877,7]
[383732688,1757103058745,-500.0,0.00032877,7]
[383732690,1757103058754,-500.0,0.00032877,7]
[383732692,1757103058763,-500.0,0.00032877,7]
[383732694,1757103058772,-900.0,0.00032883,7]
[383732696,1757103058781,-245.0,0.00032896,2]
[383732698,1757103058790,-500.0,0.00032896,7]
[383732700,1757103058800,-9800.0,0.000329,12]
[383732702,1757103058809,-900.0,0.00032904,7]
[383732704,1757103058818,-900.0,0.00032933,7]
[383732706,1757103058827,-360.0,0.0003296,2]
[383732708,1757103058835,-500.0,0.0003297,7]
[383732710,1757103058844,-500.0,0.00032989,7]
[383732712,1757103058852,-500.0,0.00032992,7]
[383732714,1757103058862,-6500.000009,0.00033,2]
[383732716,1757103058874,-173.0,0.00033,14]
[383732718,1757103058883,-500.0,0.00033016,7]
[383732720,1757103058894,-900.0,0.00033044,7]
[383732722,1757103058904,-900.0,0.00033056,7]
[383732724,1757103058914,-900.0,0.00033086,7]
[383732726,1757103058925,-996.46903327,0.00033134,19]
[383732728,1757103058934,-500.0,0.00033143,7]
[383732730,1757103058945,-900.0,0.00033192,7]
[383732732,1757103058955,-900.0,0.00033194,7]
[383732734,1757103058964,-801.77,0.00033205,2]
[383732736,1757103058974,-151.0,0.00033215,7]
[383732738,1757103058983,-151.0,0.00033215,7]
[383732740,1757103058992,-151.0,0.00033215,7]
[383732742,1757103059001,-151.0,0.00033215,7]
[383732768,1757103059227,-151.0,0.00033215,7]
[383732770,1757103059237,-151.0,0.00033215,7]
[383732772,1757103059247,-151.0,0.00033215,7]
[383732774,1757103059257,-151.0,0.00033215,7]
[383732776,1757103059266,-1100.0,0.00033229,7]
[383732778,1757103059276,-500.0,0.00033234,7]
[383732780,1757103059285,-1100.0,0.00033237,7]
[383732782,1757103059295,-900.0,0.0003325,7]
[383732784,1757103059304,-900.0,0.00033298,7]
[383732786,1757103059314,-900.0,0.00033305,7]
[383732788,1757103059323,-798.74,0.00033315,2]
[383732790,1757103059332,-500.0,0.00033327,7]
[383732792,1757103059341,-500.0,0.00033333,7]
[383732794,1757103059350,-500.0,0.00033348,7]
[383732796,1757103059360,-900.0,0.00033356,7]
[383732798,1757103059369,-500.0,0.0003337,2]
[383732799,1757103059379,-500.0,0.00033372,7]
[383732801,1757103059389,-900.0,0.00033387,7]
[383732803,1757103059399,-900.0,0.000334,7]
[383732804,1757103059408,-500.0,0.00033414,7]
[383732805,1757103059417,-1841.65140174,0.00033414,2]
[383732806,1757103059426,-500.0,0.00033415,7]
[383732807,1757103059435,-500.0,0.00033416,7]
[383732808,1757103059445,-700.0,0.00033418,7]
[383732809,1757103059454,-500.0,0.00033473,5]
[383732810,1757103059463,-500.0,0.00033487,7]
[383732811,1757103059472,-219.9890138,0.00033492,2]
[383732812,1757103059481,-91269.0777094,0.00033493,2]
[383732814,1757103059492,-2229.8830845,0.00033493,2]
[383732816,1757103059501,-151.0,0.00033493,7]
[383732818,1757103059511,-151.0,0.00033493,7]
[383732820,1757103059520,-151.0,0.00033493,7]
[383732822,1757103059530,-152.365222,0.00033493,7]
[383732824,1757103059539,-151.0,0.00033493,7]
[383732826,1757103059548,-151.0,0.00033493,7]
[383732828,1757103059558,-151.0,0.00033493,7]
[383732830,1757103059568,-151.0,0.00033493,7]
[383732832,1757103059578,-151.0,0.00033493,7]
[383732834,1757103059587,-151.0,0.00033493,7]
[383732836,1757103059597,-151.0,0.00033493,7]
[383732838,1757103059606,-151.0,0.00033493,7]
[383732840,1757103059615,-151.0,0.00033493,7]
[383732842,1757103059626,-115474.2522983,0.00033493,2]
[383732844,1757103059636,-28546.4217015,0.00033493,2]
[383732846,1757103059646,-34501.0452608,0.00033493,2]
[383732848,1757103059656,-104597.3603672,0.00033493,2]
[383732850,1757103059666,-224.958,0.00033514,2]
[383732852,1757103059675,-3382.0,0.00033514,2]
[383732854,1757103059685,-1258.0,0.00033514,2]
[383732856,1757103059694,-900.0,0.00033516,7]
[383732858,1757103059704,-245.0,0.00033539,2]
[383732860,1757103059714,-500.0,0.0003355,7]
[383732862,1757103059723,-900.0,0.0003357,7]
[383732864,1757103059733,-900.0,0.00033577,7]
[383732866,1757103059742,-769.01276794,0.00033597,2]
[383732868,1757103059752,-900.0,0.0003362,7]
[383732870,1757103059761,-163.23682652,0.0003364,15]
[383732872,1757103059770,-353.67,0.00033649,30]
[383732874,1757103059779,-500.0,0.00033673,7]
[383732876,1757103059789,-500.0,0.0003368,7]
[383732878,1757103059798,-500.0,0.00033697,7]
[383732880,1757103059808,-323.37,0.00033698,7]
[383732882,1757103059817,-900.0,0.00033701,7]
[383732884,1757103059827,-500.0,0.00033757,7]
[383732886,1757103059836,-900.0,0.00033771,7]
[383732888,1757103059845,-900.0,0.00033774,7]
[383732890,1757103059855,-1444.0,0.00033785,2]
[383732892,1757103059864,-700.0,0.00033802,7]
[383732894,1757103059879,-164.23,0.00033807,30]
[383732896,1757103059889,-500.0,0.00033808,7]
[383732898,1757103059899,-1444.0,0.00033817,2]
[383732900,1757103059909,-900.0,0.00033836,7]
[383732901,1757103059918,-500.0,0.00033838,7]
[383732904,1757103059929,-900.0,0.00033841,7]
[383732906,1757103059938,-900.0,0.00033901,7]
[383732908,1757103059949,-245.0,0.00033902,2]
[383732909,1757103059959,-500.0,0.00033904,7]
[383732911,1757103059969,-1100.0,0.00033913,7]
[383732913,1757103059979,-900.0,0.00033913,7]
[383732915,1757103059988,-500.0,0.00033933,7]
[383732918,1757103059999,-900.0,0.0003394,7]
[383732920,1757103060009,-500.0,0.00033952,7]
[383732921,1757103060018,-900.0,0.00033957,7]
[383732923,1757103060028,-700.0,0.00033969,7]
[383732925,1757103060039,-700.0,0.0003397,7]
[383732928,1757103060049,-900.0,0.00033977,7]
[383732930,1757103060059,-1100.0,0.00033983,7]
[383732932,1757103060069,-700.0,0.00034002,7]
[383732934,1757103060079,-900.0,0.00034019,7]
[383732936,1757103060089,-700.0,0.00034046,7]
[383732938,1757103060099,-245.0,0.00034067,7]
[383732940,1757103060110,-4000.0,0.00034083,4]
[383732942,1757103060121,-500.0,0.00034096,7]
[383732944,1757103060132,-500.0,0.00034105,7]
[383732946,1757103060142,-353.0,0.0003413,2]
[383732947,1757103060152,-900.0,0.00034147,7]
[383732949,1757103060162,-196.35202683,0.00034158,7]
[383732952,1757103060172,-996.46903327,0.00034164,22]
[383732954,1757103060182,-900.0,0.00034178,7]
[383732956,1757103060192,-500.0,0.00034183,7]
[383732958,1757103060203,-1841.65140169,0.00034187,2]
[383732960,1757103060213,-1444.0,0.00034199,7]
[383732962,1757103060223,-1100.0,0.00034266,7]
[383732964,1757103060232,-150.0,0.00034274,2]
[383732966,1757103060243,-150.0,0.00034274,2]
[383732967,1757103060252,-150.0,0.00034274,2]
[383732970,1757103060263,-150.0,0.00034274,2]
[383732972,1757103060273,-150.0,0.00034274,2]
[383732974,1757103060283,-900.0,0.00034299,7]
[383732976,1757103060293,-900.0,0.00034331,7]
[383732978,1757103060303,-10786.2159728,0.00034339,2]
[383732980,1757103060314,-900.0,0.00034339,7]
[383732982,1757103060323,-7951.83833312,0.00034339,2]
[383732984,1757103060333,-700.0,0.00034378,7]
[383732986,1757103060343,-323.37,0.00034383,9]
[383732988,1757103060354,-900.0,0.00034385,7]
[383732990,1757103060363,-700.0,0.00034387,7]
[383732992,1757103060373,-900.0,0.00034399,7]
[383732994,1757103060385,-979.02,0.000344,30]
[383732996,1757103060395,-900.0,0.00034416,7]
[383732998,1757103060404,-900.0,0.00034441,7]
[383733000,1757103060414,-500.0,0.00034443,7]
[383733002,1757103060424,-900.0,0.00034455,7]
[383733004,1757103060434,-900.0,0.00034457,7]
[383733006,1757103060443,-200.0,0.0003449,120]